bitfinex-derivatives/quotes_ETHF0:USTF0_20250505
["timestamp","ask_amount","ask_price","bid_price","bid_amount"]
[1746454766947,6.41127,1807.4,1807.3,3.69998]
[1746454767241,6.41127,1807.4,1807.3,2.5932]
[1746454767544,1.10678,1807.3,1807.2,6.25063]
[1746454767742,3.79028,1807.3,1807.2,6.25063]
[1746454769654,1.10685,1807.2,1807.1,6.90789]
[1746454769846,3.70445,1807.2,1807.1,6.90789]
[1746454770150,1.10703,1806.9,1806.8,9.67344]
[1746454770341,1.10703,1806.9,1806.8,12.37354]
[1746454770543,4.83889,1807.2,1807.1,1.10691]
[1746454770742,1.10695,1807.1,1807.0,1.10691]
[1746454771248,3.7045,1807.2,1807.1,1.10691]
[1746454771745,2.5976,1807.2,1807.0,2.7001]
[1746454771947,1.10691,1807.1,1807.0,3.80703]
[1746454772345,1.10703,1806.9,1806.8,3.2078]
[1746454773050,3.58523,1806.9,1806.8,3.2078]
[1746454773245,1.10715,1806.7,1806.6,8.2778]
[1746454773451,2.4782,1806.8,1806.6,10.8635]
[1746454773644,2.4782,1806.8,1806.7,3.69285]
[1746454774352,6.2102,1806.8,1806.7,3.69285]
[1746454774951,3.732,1806.8,1806.7,3.69285]
[1746454775145,2.4782,1806.9,1806.8,1.10709]
[1746454775347,3.58523,1806.9,1806.8,1.10709]
[1746454776053,2.4782,1806.9,1806.8,1.10709]
[1746454776353,7.31723,1806.9,1806.7,3.6928]
[1746454776555,7.31723,1806.9,1806.8,1.10709]
[1746454777053,6.2102,1806.9,1806.8,4.31489]
[1746454777248,3.58523,1806.9,1806.8,4.31489]
[1746454778855,3.58523,1806.9,1806.8,3.2078]
[1746454779049,3.58523,1806.9,1806.8,4.31489]
[1746454779643,3.58523,1806.9,1806.8,3.2078]
[1746454779845,3.58523,1806.9,1806.8,4.31489]
[1746454780047,3.58523,1806.9,1806.8,5.7401]
[1746454780956,3.58523,1806.9,1806.8,3.2078]
[1746454781150,1.10715,1806.7,1806.6,2.5323]
[1746454781350,1.10721,1806.6,1806.5,40.8]
[1746454782455,3.68411,1806.6,1806.5,45.11507]
[1746454782757,3.68411,1806.6,1806.5,43.5012]
[1746454783253,6.30541,1806.6,1806.5,40.8]
[1746454784654,1.10734,1806.4,1806.3,3.2078]
[1746454785154,1.10734,1806.4,1806.3,44.0078]
[1746454785751,1.10734,1806.4,1806.3,45.1152]
[1746454786351,3.67693,1806.5,1806.4,1.10734]
[1746454786554,3.67693,1806.5,1806.4,3.76064]
[1746454787055,1.10733,1806.5,1806.4,3.76064]
[1746454787356,1.10733,1806.5,1806.4,8.98984]
[1746454787546,3.72857,1806.6,1806.5,1.10727]
[1746454787747,3.72857,1806.6,1806.5,3.64817]
[1746454788653,1.10727,1806.6,1806.5,3.64817]
[1746454789049,1.10727,1806.6,1806.5,6.85597]
[1746454789550,5.7193,1806.8,1806.5,5.7487]
[1746454789756,4.31489,1806.8,1806.7,1.10715]
[1746454791857,1.10709,1806.8,1806.7,1.10715]
[1746454792156,1.10715,1806.7,1806.6,3.64807]
[1746454792354,1.10714,1806.8,1806.7,1.10711]
[1746454792556,1.10714,1806.8,1806.7,3.77671]
[1746454793348,1.10721,1806.6,1806.5,3.2078]
[1746454793556,1.10721,1806.6,1806.5,5.8774]
[1746454794155,1.10721,1806.6,1806.5,3.2078]
[1746454794357,6.42491,1806.6,1806.5,3.2078]
[1746454795058,9.12281,1806.6,1806.5,3.2078]
[1746454795261,12.85481,1806.6,1806.5,3.2078]
[1746454795967,1.10734,1806.4,1806.3,40.8]
[1746454796155,1.10734,1806.4,1806.3,41.9074]
[1746454796662,3.80522,1806.5,1806.4,1.10734]
[1746454796961,3.80522,1806.5,1806.4,4.31514]
[1746454796962,1.10732,1806.5,1806.4,4.31514]
[1746454797164,1.10732,1806.5,1806.4,6.83984]
[1746454797665,1.10726,1806.6,1806.5,1.10727]
[1746454797861,1.10726,1806.6,1806.5,5.1062]
[1746454798262,1.10726,1806.6,1806.5,6.21347]
[1746454798661,1.10726,1806.6,1806.5,5.1062]
[1746454798865,1.10726,1806.6,1806.5,6.21347]
[1746454799363,1.10726,1806.6,1806.5,5.1062]
[1746454800067,1.10726,1806.6,1806.5,6.21347]
[1746454800457,2.6099,1806.7,1806.6,1.10721]
[1746454800657,1.10711,1806.8,1806.7,1.10715]
[1746454800967,1.10706,1806.9,1806.8,1.10703]
[1746454801465,3.983,1807.4,1806.9,2.76758]
[1746454801663,3.983,1807.4,1807.1,1.10686]
[1746454801664,1.10686,1807.2,1807.1,1.10686]
[1746454801863,1.10686,1807.2,1807.1,6.19626]
[1746454802167,1.10686,1807.2,1807.1,46.99626]
[1746454802469,3.76721,1807.3,1807.2,1.10685]
[1746454802664,3.76721,1807.3,1807.2,2.5677]
[1746454803163,7.49921,1807.3,1807.2,2.5677]
[1746454803365,7.49921,1807.3,1807.2,43.3677]
[1746454803969,7.49921,1807.3,1807.2,44.47455]
[1746454804170,7.49921,1807.3,1807.2,43.3677]
[1746454804767,7.49921,1807.3,1807.2,44.47455]
[1746454805269,4.83881,1807.3,1807.2,44.47455]
[1746454805462,3.732,1807.3,1807.2,44.47455]
[1746454805664,4.83878,1807.3,1807.2,44.47455]
[1746454805864,4.83878,1807.3,1807.2,43.3677]
[1746454806168,4.83878,1807.3,1807.2,40.8]
[1746454806366,7.52488,1807.3,1807.2,40.8]
[1746454807061,4.83878,1807.3,1807.2,41.90685]
[1746454807465,4.83878,1807.3,1807.2,43.3143]
[1746454807667,7.52488,1807.3,1807.2,44.42115]
[1746454807864,7.52488,1807.3,1807.2,43.3143]
[1746454808065,7.52488,1807.3,1807.2,44.42115]
[1746454808365,7.52488,1807.3,1807.2,43.3143]
[1746454808564,7.52488,1807.3,1807.2,44.42115]
[1746454811268,3.732,1807.3,1807.2,44.42115]
[1746454811871,3.2078,1807.7,1807.4,1.10667]
[1746454812168,3.2078,1807.7,1807.5,3.69664]
[1746454812169,1.1066,1807.6,1807.5,3.69664]
[1746454812370,1.10655,1807.7,1807.6,1.1066]
[1746454812572,1.10649,1807.8,1807.7,1.10648]
[1746454812765,4.31424,1807.9,1807.8,1.10648]
[1746454813069,1.10642,1807.9,1807.8,5.0835]
[1746454813467,1.10642,1807.9,1807.8,45.8835]
[1746454813669,1.10642,1807.9,1807.8,46.98998]
[1746454813874,1.10642,1807.9,1807.8,45.8835]
[1746454814065,4.83842,1807.9,1807.8,45.8835]
[1746454814268,4.83842,1807.9,1807.8,46.98998]
[1746454815571,4.83842,1807.9,1807.8,45.8835]
[1746454815771,4.83842,1807.9,1807.8,40.8]
[1746454822071,4.83842,1807.9,1807.8,41.90648]
[1746454822263,4.83842,1807.9,1807.8,40.8]
[1746454822464,4.83842,1807.9,1807.8,41.90648]
[1746454823065,4.83842,1807.9,1807.8,44.47688]
[1746454823673,4.83842,1807.9,1807.8,41.90648]
[1746454823873,4.83842,1807.9,1807.8,40.8]
[1746454824372,4.83842,1807.9,1807.8,41.90648]
[1746454824572,4.83842,1807.9,1807.8,44.53848]
[1746454824870,3.732,1807.9,1807.8,44.53848]
[1746454825174,3.60069,1808.0,1807.9,1.10642]
[1746454825374,1.10639,1808.0,1807.9,6.39762]
[1746454825575,1.10639,1808.0,1807.9,9.02962]
[1746454825771,1.10639,1808.0,1807.9,40.8]
[1746454826069,3.69539,1808.0,1807.9,40.8]
[1746454826275,4.83839,1808.0,1807.9,40.8]
[1746454826470,7.42739,1808.0,1807.9,40.8]
[1746454827768,6.321,1808.0,1807.5,5.2912]
[1746454828076,1.10666,1807.5,1807.4,2.6455]
[1746454828577,1.10678,1807.3,1807.2,5.0642]
[1746454828875,1.10678,1807.3,1807.2,49.61655]
[1746454829172,4.83878,1807.3,1807.2,49.61655]
[1746454829574,3.732,1807.3,1807.2,49.61655]
[1746454830174,1.10678,1807.3,1807.2,49.61655]
[1746454831773,1.10678,1807.3,1807.2,48.5097]
[1746454831970,1.10678,1807.3,1807.2,40.8]
[1746454832472,1.10697,1807.0,1806.9,8.2232]
[1746454832873,1.10697,1807.0,1806.9,49.0232]
[1746454833070,7.26197,1807.0,1806.9,45.11483]
[1746454833273,10.46977,1807.0,1806.9,40.8]
[1746454833578,1.10715,1806.7,1806.6,2.3861]
[1746454834275,4.9315,1806.8,1806.5,2.5065]
[1746454834479,1.10727,1806.5,1806.4,2.3861]
[1746454834682,1.10734,1806.4,1806.3,4.3152]
[1746454834978,3.52214,1806.4,1806.3,6.7013]
[1746454835172,4.9968,1806.8,1806.4,2.76835]
[1746454835477,1.10716,1806.7,1806.6,1.10716]
[1746454835675,1.10716,1806.7,1806.6,5.99976]
[1746454835874,10.05994,1806.8,1806.7,1.10715]
[1746454836176,7.57984,1806.8,1806.7,3.49325]
[1746454836371,7.57984,1806.8,1806.7,2.3861]
[1746454836772,3.956,1806.8,1806.7,3.49325]
[1746454837077,1.10701,1807.0,1806.9,1.10702]
[1746454837278,4.9914,1807.1,1806.8,2.4971]
[1746454837576,1.10697,1807.0,1806.9,2.5035]
[1746454837770,1.10697,1807.0,1806.9,5.0006]
[1746454837967,1.10697,1807.0,1806.7,3.2078]
[1746454837968,1.10709,1806.8,1806.7,3.2078]
[1746454838173,1.10709,1806.8,1806.7,6.81205]
[1746454839081,3.64958,1806.9,1806.8,1.10709]
[1746454839379,1.10708,1806.9,1806.8,3.60419]
[1746454839888,1.10703,1806.9,1806.8,3.60416]
[1746454840373,2.4981,1807.0,1806.8,2.4971]
[1746454840576,3.60507,1807.0,1806.9,2.4539]
[1746454841182,7.33707,1807.0,1806.9,2.4539]
[1746454841790,7.33707,1807.0,1806.9,3.56093]
[1746454842081,4.83897,1807.0,1806.9,2.4539]
[1746454842379,1.10697,1807.0,1806.9,2.4539]
[1746454842583,1.10697,1807.0,1806.9,4.8662]
[1746454843083,1.10709,1806.8,1806.7,3.2078]
[1746454843380,1.10709,1806.8,1806.7,4.31495]
[1746454843780,0.09633871,1807.9,1806.7,8.2078]
[1746454843978,1.10644,1807.9,1807.8,3.2078]
[1746454844172,1.10633,1808.1,1807.9,1.10638]
[1746454844376,3.31018,1808.0,1807.8,6.79023]
[1746454844573,3.31018,1808.0,1807.9,2.6206]
[1746454844781,1.10638,1808.0,1807.9,43.4206]
[1746454845279,3.31018,1808.0,1807.9,40.8]
[1746454845480,8.31018,1808.0,1807.9,40.8]
[1746454845984,15.47498,1808.0,1807.9,40.8]
[1746454846187,13.45378,1808.0,1807.9,40.8]
[1746454848288,1.1066,1807.6,1807.5,2.5731]
[1746454848496,3.3104,1807.6,1807.5,5.1762]
[1746454848696,1.1066,1807.6,1807.5,5.1762]
[1746454848991,3.53608,1807.7,1807.5,47.08286]
[1746454849289,1.10651,1807.8,1807.6,3.7097]
[1746454849496,1.10651,1807.8,1807.6,1.1066]
[1746454849497,1.10652,1807.8,1807.6,1.1066]
[1746454849694,2.2038,1807.7,1807.6,4.31436]
[1746454849989,3.31034,1807.7,1807.6,3.2078]
[1746454850181,5.73984,1807.7,1807.6,3.2078]
[1746454850592,5.73984,1807.7,1807.5,44.47972]
[1746454850989,3.3104,1807.6,1807.5,43.3731]
[1746454851187,9.4719,1807.6,1807.5,43.3731]
[1746454851388,9.4719,1807.6,1807.5,40.8]
[1746454851690,9.4719,1807.6,1807.5,41.90666]
[1746454851991,5.9358,1807.6,1807.5,41.90666]
[1746454852190,1.10652,1807.8,1807.7,1.10654]
[1746454852491,4.806,1807.9,1807.5,40.8]
[1746454852492,9.6194,1808.0,1807.9,1.10642]
[1746454852685,10.47498,1808.0,1807.9,1.10642]
[1746454853094,10.24998,1808.0,1807.8,1.10644]
[1746454853394,2.2038,1807.9,1807.8,1.10644]
[1746454853593,3.31022,1807.9,1807.8,1.10644]
[1746454853792,1.10642,1807.9,1807.8,1.10644]
[1746454853989,1.10642,1807.9,1807.7,3.67319]
[1746454854195,1.10648,1807.8,1807.7,3.67319]
[1746454854696,1.10648,1807.8,1807.7,2.5667]
[1746454854899,3.31028,1807.8,1807.7,2.5667]
[1746454855195,7.04228,1807.8,1807.7,2.5667]
[1746454855397,9.50758,1807.8,1807.7,2.5667]
[1746454857396,5.9358,1807.8,1807.7,3.67324]
[1746454857595,3.2078,1808.2,1808.1,1.10629]
[1746454857796,2.2038,1808.1,1808.0,1.10632]
[1746454858299,8.04607,1808.2,1808.0,1.10632]
[1746454858500,8.04607,1808.2,1808.1,2.3794]
[1746454858798,10.24987,1808.2,1808.1,2.3794]
[1746454859192,11.5814,1808.2,1807.8,2.3794]
[1746454859393,2.2038,1808.0,1807.9,1.10642]
[1746454859798,1.10633,1808.1,1808.0,1.10636]
[1746454860195,3.31022,1807.9,1807.8,2.3794]
[1746454860395,1.10654,1807.7,1807.6,2.5437]
[1746454860594,2.2038,1807.8,1807.6,4.8489]
[1746454860798,3.31033,1807.8,1807.7,1.10654]
[1746454861601,1.10654,1807.7,1807.6,5.95546]
[1746454861899,3.31034,1807.7,1807.6,8.37276]
[1746454862197,1.10654,1807.7,1807.6,8.37276]
[1746454862394,1.10654,1807.7,1807.6,7.2662]
[1746454862600,1.1066,1807.6,1807.5,44.0078]
[1746454862895,5.7586,1807.6,1807.5,40.8]
[1746454863097,5.7586,1807.6,1807.1,1.1069]
[1746454863098,1.10689,1807.2,1807.1,1.1069]
[1746454863294,2.2038,1807.3,1807.1,2.4173]
[1746454863499,3.31063,1807.3,1807.2,45.11463]
[1746454863700,4.736,1807.4,1807.2,44.0078]
[1746454863890,2.2038,1807.4,1807.3,3.57208]
[1746454864090,3.944,1807.5,1807.4,1.10672]
[1746454864304,1.10668,1807.5,1807.4,8.34722]
[1746454864503,3.31048,1807.5,1807.4,7.2405]
[1746454864796,3.31048,1807.5,1807.4,48.0405]
[1746454865202,3.31048,1807.5,1807.4,45.6864]
[1746454865498,5.65728,1807.5,1807.4,45.6864]
[1746454866004,4.5506,1807.5,1807.4,46.79312]
[1746454866300,5.9358,1807.5,1807.4,46.79312]
[1746454866494,7.04246,1807.5,1807.4,46.79312]
[1746454866900,4.83866,1807.5,1807.4,46.79312]
[1746454867096,2.4215,1807.6,1807.4,46.79312]
[1746454867296,2.4215,1807.6,1807.5,3.60636]
[1746454867297,3.52815,1807.6,1807.5,3.60636]
[1746454867496,5.73195,1807.6,1807.5,3.60636]
[1746454867700,2.2038,1807.6,1807.5,3.60636]
[1746454867896,3.3104,1807.6,1807.5,6.14636]
[1746454868295,1.10666,1807.5,1807.4,43.2211]
[1746454868505,5.78486,1807.5,1807.4,40.8]
[1746454868897,5.78486,1807.5,1807.4,41.90672]
[1746454869103,9.51686,1807.5,1807.4,41.90672]
[1746454869297,7.04246,1807.5,1807.4,40.8]
[1746454869899,7.04246,1807.5,1807.4,41.90672]
[1746454870297,7.04246,1807.5,1807.4,40.8]
[1746454871596,7.04246,1807.5,1807.4,43.232]
[1746454871904,7.04246,1807.5,1807.4,44.33872]
[1746454872104,4.83866,1807.5,1807.4,44.33872]
[1746454872705,4.83866,1807.5,1807.4,43.232]
[1746454873003,3.732,1807.5,1807.4,47.54652]
[1746454873207,6.3332,1807.8,1807.6,1.1066]
[1746454873208,1.10659,1807.7,1807.6,1.1066]
[1746454873505,3.31034,1807.7,1807.6,4.3144]
[1746454873808,1.10654,1807.7,1807.6,4.3144]
[1746454874109,1.1066,1807.6,1807.5,1.10661]
[1746454874500,1.10666,1807.5,1807.4,45.11448]
[1746454874803,3.31046,1807.5,1807.4,40.8]
[1746454875209,9.58336,1807.5,1807.4,40.8]
[1746454875405,20.13096,1807.5,1807.4,40.8]
[1746454875611,2.76744,1807.0,1806.6,7.36089599]
[1746454875810,3.31095,1806.7,1806.6,7.36089599]
[1746454876301,9.47265,1806.7,1806.6,7.36089599]
[1746454876498,9.47265,1806.7,1806.6,48.16089599]
[1746454877204,5.74065,1806.7,1806.6,48.16089599]
[1746454877599,5.74065,1806.7,1806.6,40.8]
[1746454878309,5.05213,1806.8,1806.6,41.90721]
[1746454878507,12.41185,1806.9,1806.7,1.10715]
[1746454878714,2.2038,1806.8,1806.7,1.10715]
[1746454878905,3.31089,1806.8,1806.6,44.0078]
[1746454879205,1.10715,1806.7,1806.6,40.8]
[1746454879415,14.07243,1806.9,1806.7,1.10715]
[1746454879416,4.748,1806.8,1806.7,1.10715]
[1746454879711,2.2038,1806.8,1806.7,1.10715]
[1746454879913,1.10709,1806.8,1806.6,41.90717]
[1746454880404,3.65129,1806.8,1806.6,41.90717]
[1746454880913,2.5442,1806.8,1806.6,40.8]
[1746454881208,1.10709,1806.8,1806.7,1.10715]
[1746454881404,1.10709,1806.8,1806.6,41.90716]
[1746454881602,2.5442,1806.8,1806.6,41.90716]
[1746454882114,2.5442,1806.8,1806.7,1.10715]
[1746454882115,3.65132,1806.8,1806.7,1.10715]
[1746454882304,4.31481,1807.0,1806.6,46.77576]
[1746454882507,1.10704,1806.9,1806.8,1.10706]
[1746454882705,6.51862,1807.0,1806.7,2.5318]
[1746454882913,5.4116,1807.0,1806.9,1.10703]
[1746454883217,3.2078,1807.0,1806.9,1.10703]
[1746454883618,3.63838,1807.2,1807.1,1.10691]
[1746454883914,1.10701,1807.0,1806.9,1.10702]
[1746454884321,1.10695,1807.1,1807.0,1.10695]
[1746454885216,4.8414,1807.2,1806.8,3.2078]
[1746454885412,1.10703,1806.9,1806.8,4.31484]
[1746454885717,2.2038,1806.9,1806.7,2.5318]
[1746454885908,5.53616,1806.6,1805.9,1.1076]
[1746454886105,1.10752,1806.1,1806.0,5.6727]
[1746454886311,2.2038,1806.3,1806.0,2.4649]
[1746454886514,1.10758,1806.0,1805.9,7.36089599]
[1746454886815,4.31538,1806.0,1805.9,7.36089599]
[1746454887007,13.82468,1806.0,1805.9,48.16089599]
[1746454887209,17.55668,1806.0,1805.9,4.80199599]
[1746454887812,17.55668,1806.0,1805.9,3.62218599]
[1746454888312,17.55668,1806.0,1805.9,1.62218599]
[1746454889319,12.55668,1806.0,1805.9,1.62218599]
[1746454890318,3.31144,1805.9,1805.8,51.28549894]
[1746454890614,5.80934,1805.9,1805.8,51.28549894]
[1746454890812,9.75634,1805.9,1805.8,51.28549894]
[1746454891007,8.6487,1805.9,1805.8,51.28549894]
[1746454891219,6.1508,1805.9,1805.8,52.39319894]
[1746454891416,1.10759,1806.0,1805.8,52.39319894]
[1746454891619,1.10754,1806.1,1805.9,3.57194]
[1746454891916,3.31138,1806.0,1805.9,2.4643]
[1746454892316,1.10758,1806.0,1805.9,2.4643]
[1746454892717,1.10758,1806.0,1805.9,3.57194]
[1746454893012,1.10764,1805.9,1805.8,40.8]
[1746454893214,5.85844,1805.9,1805.8,40.8]
[1746454893421,9.79644,1805.9,1805.8,40.8]
[1746454894121,1.10789,1805.5,1805.4,2.4643]
[1746454894315,1.10795,1805.4,1805.2,3.49422]
[1746454894510,3.64775,1805.4,1805.3,40.8]
[1746454894719,5.85155,1805.4,1805.3,40.8]
[1746454895218,1.10794,1805.5,1805.3,41.90801]
[1746454895418,1.10794,1805.5,1805.4,2.4768]
[1746454895618,2.2038,1805.5,1805.4,3.58475]
[1746454895818,3.31169,1805.5,1805.4,3.58475]
[1746454896018,3.31169,1805.5,1805.4,2.4768]
[1746454896420,2.2038,1805.5,1805.4,3.58475]
[1746454896717,5.04587,1805.6,1805.4,3.58475]
[1746454896918,7.24967,1805.6,1805.4,3.58475]
[1746454897619,7.24964,1805.6,1805.4,3.5847]
[1746454898213,6.1418,1805.6,1805.5,1.10789]
[1746454898415,3.939,1805.9,1805.5,2.3173]
[1746454898721,3.31153,1805.8,1805.6,3.6427]
[1746454898910,2.2038,1805.8,1805.7,44.22506]
[1746454899111,1.10759,1806.0,1805.8,1.1077]
[1746454899315,1.10759,1806.0,1805.9,2.3173]
[1746454899515,3.31139,1806.0,1805.9,2.3173]
[1746454899720,2.2038,1806.0,1805.9,2.3173]
[1746454899921,2.2038,1806.0,1805.9,43.1173]
[1746454900224,2.2038,1806.0,1805.9,44.22494]
[1746454900619,3.939,1806.3,1805.9,50.88626]
[1746454900815,3.2078,1806.4,1806.3,1.1074]
[1746454901312,3.49905,1806.6,1806.5,1.10727]
[1746454901514,3.49905,1806.6,1806.5,40.8]
[1746454901717,4.5956,1806.6,1806.5,41.90727]
[1746454902018,3.2078,1807.1,1806.5,50.95333]
[1746454902229,4.5956,1807.0,1806.9,1.10703]
[1746454902516,1.10698,1807.0,1806.8,2.3852]
[1746454902718,2.2038,1806.7,1806.6,3.45999]
[1746454902921,2.2038,1806.9,1806.6,10.71384]
[1746454903222,2.2038,1806.9,1806.8,1.10709]
[1746454903425,2.2038,1806.9,1806.7,3.4923]
[1746454903426,1.10703,1806.9,1806.7,3.4923]
[1746454903623,5.80373,1806.9,1806.7,3.4923]
[1746454903826,5.80373,1806.9,1806.8,1.10709]
[1746454904126,1.10709,1806.8,1806.7,2.3852]
[1746454904428,3.31089,1806.8,1806.7,2.3852]
[1746454904722,5.80379,1806.8,1806.7,2.3852]
[1746454904924,1.10717,1806.7,1806.5,40.8]
[1746454905219,2.2038,1806.6,1806.5,40.8]
[1746454905426,3.31101,1806.6,1806.5,40.8]
[1746454905620,7.24901,1806.6,1806.5,40.8]
[1746454905813,8.90992,1806.6,1806.0,3.2078]
[1746454906018,2.2038,1806.3,1806.1,3.49621]
[1746454906312,3.31137,1806.1,1805.8,3.2078]
[1746454906512,2.2038,1806.1,1806.0,1.10758]
[1746454906720,2.2038,1806.1,1806.0,4.31538]
[1746454906923,1.10741,1806.3,1805.9,2.4176]
[1746454907124,3.31121,1806.3,1806.2,1.10746]
[1746454907422,2.2038,1806.3,1806.2,1.10746]
[1746454907625,5.5181,1806.5,1806.3,1.1074]
[1746454907812,6.62542,1806.5,1806.4,2.4176]
[1746454908425,8.82922,1806.5,1806.4,2.4176]
[1746454910824,5.62142,1806.5,1806.4,2.4176]
[1746454912529,4.5141,1806.5,1806.4,2.4176]
[1746454912722,5.62137,1806.5,1806.4,2.4176]
[1746454913119,5.62137,1806.5,1806.4,3.52494]
[1746454913320,5.62137,1806.5,1806.4,2.4176]
[1746454913725,1.10727,1806.5,1806.4,3.5249]
[1746454914727,2.4373,1806.6,1806.4,3.5249]
[1746454914927,2.2038,1806.5,1806.4,3.5249]
[1746454915328,3.2078,1806.7,1806.4,2.4176]
[1746454915632,3.2078,1806.7,1806.6,1.10721]
[1746454915821,1.10707,1806.9,1806.8,1.10709]
[1746454916020,3.31087,1806.9,1806.8,1.10709]
[1746454916331,7.04283,1806.9,1806.8,1.10709]
[1746454916518,5.9358,1806.9,1806.8,1.10709]
[1746454916718,3.732,1806.9,1806.8,1.10709]
[1746454917028,3.732,1806.9,1806.8,3.54079]
[1746454917231,3.47272,1807.0,1806.8,3.54079]
[1746454917427,3.47272,1807.0,1806.9,2.4337]
[1746454917628,5.67652,1807.0,1806.9,3.54073]
[1746454917830,2.2038,1807.0,1806.9,3.54073]
[1746454918121,3.732,1807.0,1806.9,2.4337]
[1746454918325,3.732,1807.0,1806.9,46.67743]
[1746454919120,1.10686,1807.2,1807.1,1.10691]
[1746454919531,1.10695,1807.1,1807.0,1.10694]
[1746454919735,5.813,1807.2,1807.1,1.10691]
[1746454920119,3.6092,1807.2,1807.1,1.10691]
[1746454920324,1.10697,1807.0,1806.9,40.8]
[1746454920631,3.31077,1807.0,1806.9,40.8]
[1746454921024,5.81307,1807.0,1806.9,40.8]
[1746454921323,9.54507,1807.0,1806.9,40.8]
[1746454922632,9.54507,1807.0,1806.9,41.90703]
[1746454922930,9.54507,1807.0,1806.9,43.2897]
[1746454923131,5.81307,1807.0,1806.9,40.8]
[1746454923431,1.10721,1806.6,1806.5,5.5553]
[1746454923631,1.10721,1806.6,1805.6,5.53903]
[1746454923632,1.10734,1806.4,1806.3,2.4897]
[1746454923826,2.2038,1806.3,1806.2,1.10742]
[1746454924027,2.2038,1806.3,1806.1,2.3848]
[1746454924028,5.63133,1806.3,1806.1,4.8745]
[1746454924229,2.3201,1806.3,1806.2,1.10746]
[1746454924429,2.3201,1806.3,1806.2,44.39716]
[1746454924936,3.2078,1806.6,1806.2,44.39711]
[1746454925130,3.31115,1806.4,1806.2,44.39711]
[1746454925729,1.1074,1806.3,1806.2,43.2897]
[1746454927036,1.1074,1806.3,1806.2,44.39716]
[1746454927425,1.1074,1806.3,1806.2,43.2897]
[1746454927624,1.1074,1806.3,1805.8,4.31547]
[1746454927625,2.7687,1806.2,1805.8,4.31547]
[1746454927830,2.2038,1805.9,1805.6,5.85351]
[1746454928133,1.10776,1805.7,1805.6,8.18423]
[1746454928635,6.2709,1806.1,1805.6,47.8764]
[1746454928828,1.10765,1805.9,1805.8,1.1077]
[1746454930140,1.1077,1805.8,1805.7,5.5385]
[1746454930437,1.10776,1805.7,1805.6,40.8]
[1746454930637,5.66306,1805.7,1805.6,40.8]
[1746454931443,8.87086,1805.7,1805.6,40.8]
[1746454931739,5.66306,1805.7,1805.6,40.8]
[1746454931935,8.87086,1805.7,1805.6,40.8]
[1746454932342,1.10817,1805.1,1804.9,1.10825]
[1746454932541,3.31193,1805.1,1804.9,3.51191]
[1746454932738,1.1081,1805.2,1805.0,1.10817]
[1746454932942,3.3119,1805.2,1805.1,2.4037]
[1746454933146,1.1081,1805.2,1805.1,2.4037]
[1746454933341,1.1081,1805.2,1805.1,43.2037]
[1746454933844,2.3515,1805.3,1805.1,43.2037]
[1746454934043,5.66333,1805.3,1805.1,44.31181]
[1746454934241,5.66333,1805.3,1805.2,2.5139]
[1746454934539,8.87113,1805.3,1805.2,2.5139]
[1746454934752,1.10807,1805.2,1805.1,40.8]
[1746454934954,5.73687,1805.2,1805.1,40.8]
[1746454939854,2.77058,1805.0,1804.6,4.9591]
[1746454940158,1.10838,1804.7,1804.6,2.4723]
[1746454940458,3.31218,1804.7,1804.3,2.4461]
[1746454940649,1.10844,1804.5,1804.4,2.4723]
[1746454940849,1.10844,1804.5,1804.4,43.2723]
[1746454941057,5.84464,1804.5,1804.4,40.8]
[1746454941754,5.84464,1804.5,1804.4,43.2723]
[1746454942157,5.84459,1804.5,1804.4,43.2723]
[1746454942953,5.84459,1804.5,1804.4,40.8]
[1746454944050,5.84459,1804.5,1804.4,43.3505]
[1746454945153,3.64079,1804.5,1804.4,43.3505]
[1746454946353,3.64079,1804.5,1804.4,47.0825]
[1746454946554,5.84459,1804.5,1804.4,44.532]
[1746454947156,5.84459,1804.5,1804.4,40.8]
[1746454947566,9.77859,1804.5,1804.4,40.8]
[1746454947856,12.31279,1804.5,1804.4,40.8]
[1746454948455,1.1087,1804.0,1803.9,3.2078]
[1746454948758,3.3125,1804.0,1803.9,3.2078]
[1746454948947,3.3125,1804.0,1803.9,44.0078]
[1746454949664,3.3125,1804.0,1803.9,46.3835]
[1746454950163,3.3125,1804.0,1803.9,50.1155]
[1746454950554,3.3125,1804.0,1803.9,47.7398]
[1746454951157,5.7253,1804.0,1803.9,44.0078]
[1746454952363,5.7253,1804.0,1803.9,40.8]
[1746454952658,1.10894,1803.6,1803.5,3.2078]
[1746454952852,4.97621,1803.6,1803.1,10.3469]
[1746454953058,1.10911,1803.4,1803.3,5.5147]
[1746454953754,3.31291,1803.4,1803.3,46.3147]
[1746454954569,3.31291,1803.4,1803.3,44.0078]
[1746454954861,3.31291,1803.4,1802.4,3.2078]
[1746454954862,9.5953,1803.4,1802.4,3.2078]
[1746454955064,1.10956,1802.6,1802.5,2.3887]
[1746454955466,1.10956,1802.6,1802.5,43.1887]
[1746454955769,3.31336,1802.6,1802.5,43.1887]
[1746454955970,3.31336,1802.6,1802.5,40.8]
[1746454956168,5.70486,1802.6,1802.5,40.8]
[1746454957670,1.10974,1802.3,1802.2,2.3887]
[1746454957866,2.2038,1802.3,1802.2,2.3887]
[1746454958067,1.10974,1802.3,1802.2,2.3887]